Cogmind - Beta 13 *** ADVENTURER MODE // 2024.05.02 @ 14:34:29 Player: Beagleofevil Result: Self-destructed Performance ------------- Evolutions (1) 500 Regions Visited (2) 400 Robots Destroyed (9) 45 Value Destroyed (185) 185 Prototype IDs (2) 40 Alien Tech Used (0) 0 Bonus (0) 0 TOTAL SCORE: 1170 Bonus ------- None Cogmind --------- Core Integrity 400/400 Matter 67/300 Energy 100/100 System Corruption 0% Temperature Cool (42) Movement Treading (160) Location -9/Materials Parts ------- > --- POWER (1) -------- (None) > --- PROPULSION (2) --- Light Treads Light Treads > --- UTILITY (4) ------ Small Storage Unit Seismic Detector Medium Armor Plating > --- WEAPON (2) ------- EM Pulse Gun Assault Rifle > --- INVENTORY (8) ---- Light Ion Engine Light Ion Engine Compact Wheel Compact Wheel High-capacity Matter Pod (0) Assault Rifle Grenade Launcher Mining Laser Peak State ------------ > --- POWER ------------ Light Nuclear Core > --- PROPULSION ------- Light Treads Light Treads > --- UTILITY ---------- Small Storage Unit Seismic Detector Medium Armor Plating > --- WEAPON ----------- Assault Rifle Mining Laser > --- INVENTORY -------- Light Ion Engine Light Ion Engine Compact Wheel Compact Wheel High-capacity Matter Pod EM Pulse Gun Assault Rifle Grenade Launcher [Rating: 11] Favorites ----------- Power Light Nuclear Core Engine Light Ion Engine Power Core Light Nuclear Core Propulsion Light Treads Treads Light Treads Utility Small Storage Unit Device Seismic Detector Storage Small Storage Unit Protection Medium Armor Plating Weapon Assault Rifle Energy Gun EM Pulse Gun Ballistic Gun Assault Rifle Special Weapon Mining Laser Build | -11 -10 -9 ------- Run | Yrd Mat Mat Slots Evolved 2 | . . 2 Power . | . . . Propulsion . | . . . Utility 2 | . . 2 Weapon . | . . . Parts Attached 21 | 8 10 3 Power 3 | 1 2 . Engine 1 | 1 . . Core 2 | . 2 . Reactor . | . . . Propulsion 4 | 2 2 . Treads 4 | 2 2 . Leg . | . . . Wheel . | . . . Hover . | . . . Flight . | . . . Utility 5 | 3 1 1 Device 3 | 2 1 . Storage 1 | 1 . . Processor . | . . . Hackware . | . . . Protection 1 | . . 1 Artifact . | . . . Weapon 9 | 2 5 2 Energy Gun 1 | . . 1 Energy Cannon . | . . . Ballistic Gun 7 | 2 4 1 Ballistic Cannon . | . . . Launcher . | . . . Special Weapon 1 | . 1 . Impact Weapon . | . . . Slashing Weapon . | . . . Piercing Weapon . | . . . Special Melee Weapon . | . . . Unidentified Prototypes . | . . . Parts Lost 1 | . . 1 Power 1 | . . 1 Propulsion . | . . . Utility . | . . . Weapon . | . . . Highest Loss Streak 1 | . . 1 To Critical Strikes . | . . . Average Slot Usage (%) 97 | . 98 85 Engine 3 | . 3 . Core 10 | . 10 11 Treads 27 | . 27 22 Device 13 | . 13 11 Storage 13 | . 14 11 Ballistic Gun 18 | . 18 17 Special Weapon 8 | . 8 2 Naked Turns . | . . . Heaviest Build 22 | 13 15 22 Greatest Support 40 | 40 40 40 Greatest Overweight (x) 4 | . 4 . Average Overweight (x) . | . . . Largest Inventory Capacity 8 | 8 8 8 Average Capacity 7 | 7 8 8 Most Carried 8 | 7 8 8 Average Carried 7 | 3 7 8 Final Capacity 8 | 8 8 8 Final Carried 8 | 6 8 8 Class Distribution -------------------- 100% | Mutant Dominant Class ---------------- Mutant | -10/Materials Mutant | -9/Materials Resources | -11 -10 -9 ----------- Run | Yrd Mat Mat Matter Collected 265 | 168 37 60 Remotely 59 | 59 . . Salvage Created 301 | 71 153 77 Parts 31 | 8 18 5 Haulers Intercepted . | . . . Recyclers Shooed 1 | . 1 . Parts Field Recycled . | . . . Retrieved Matter . | . . . Parts Self-Destructed . | . . . Prevented . | . . . Kills | -11 -10 -9 ------- Run | Yrd Mat Mat Combat Hostiles Destroyed 3 | . 2 1 Guns 3 | . 2 1 Classes Destroyed 6 | 2 2 2 Tunneler 3 | 1 2 . Recycler 1 | 1 . . Operator 1 | . . 1 Watcher 1 | . 1 . Grunt 2 | . 2 . Sentry 1 | . . 1 Best Kill Streak 3 | 2 3 2 Combat Bots Only 2 | . 2 1 Max Kills in Single Turn 1 | 1 1 1 Gunslinging . | . . . Exploded . | . . . Melee . | . . . Uniques/NPCs Destroyed . | . . . Combat | -11 -10 -9 -------- Run | Yrd Mat Mat Hostile Shots Fired 64 | . 11 53 Missed 18 | . 2 16 Damage Taken 438 | . 99 339 Core 17 | . 17 . Absorbed by Shields . | . . . Ignored by Resistances 128 | . 28 100 Core Remaining (%) 96 | 100 93 . Volleys Fired 30 | 3 16 11 Largest 2 | 2 2 2 Hottest 100 | 40 100 60 Shots Fired 46 | 6 23 17 Gun 40 | 6 17 17 Cannon . | . . . Launcher . | . . . Special 6 | . 6 . Kinetic 34 | 6 17 11 Thermal 6 | . 6 . Explosive . | . . . Electromagnetic 6 | . . 6 Robot Hit Streak 13 | 4 9 13 Robot Miss Streak 1 | 1 1 1 Penetration Max . | . . . Secondary Targets . | . . . Shots Hit Robots 36 | 5 15 16 Core Hits 16 | 3 9 4 Critical Kills 1 | . 1 . Critical Parts Destroyed . | . . . Critical Strikes 1 | . 1 . Destroy 1 | . 1 . Melee Attacks . | . . . Impact . | . . . Slashing . | . . . Piercing . | . . . Sneak Attacks . | . . . Combat Hostiles . | . . . Follow-up Attacks . | . . . Damage Inflicted 478 | 59 190 229 Guns 438 | 59 187 192 Cannons . | . . . Explosions 37 | . . 37 Melee . | . . . Ramming 3 | . 3 . Kinetic 370 | 59 187 124 Thermal 37 | . . 37 Explosive . | . . . Electromagnetic 68 | . . 68 Impact . | . . . Slashing . | . . . Piercing . | . . . Highest Corruption . | . . . Average Corruption . | . . . Corruption Purged . | . . . Corruption Blocked . | . . . Overload Shots . | . . . Overflow Damage . | . . . Projectiles . | . . . Explosions . | . . . Melee . | . . . Knockbacks . | . . . Impact . | . . . Kinetic . | . . . Secondary . | . . . Self-Inflicted Damage 33 | . . 33 Shots 1 | . . 1 Rammed 2 | . 2 . Targets Rammed 2 | . 2 . Kicked . | . . . Crushed . | . . . Highest Temperature 59 | . 56 59 Average Temperature 25 | . 24 27 Received Heat Transfer 123 | . 69 54 Siege Activations . | . . . Robots Corrupted . | . . . Combat Hostiles . | . . . Parts Fried 1 | . . 1 Impact Corruptions . | . . . Robots Melted . | . . . Combat Hostiles . | . . . Parts Melted . | . . . Heat Transferred 50 | . . 50 Parts Sabotaged . | . . . Parts Stolen . | . . . Parts Stripped . | . . . Power Chain Reactions 1 | . . 1 Alert | -11 -10 -9 ------- Run | Yrd Mat Mat Peak Influence 122 | 10 122 61 Initial 6 | . 5 6 Average 37 | 2 44 14 Maximum Alert Level . | . . . Low Security (%) 100 | 100 100 100 Level 1 . | . . . Level 2 . | . . . Level 3 . | . . . Level 4 . | . . . Level 5 . | . . . High Security . | . . . Max Security . | . . . Squads Dispatched 1 | . 1 . Investigation 1 | . 1 . Extermination . | . . . Reinforcement . | . . . Assault . | . . . Garrison . | . . . Intercept . | . . . Searches Triggered . | . . . Construction Impeded . | . . . Haulers Reinforced . | . . . Active Scanning Responses . | . . . Cargo Convoy Interrupts . | . . . Stealth | -11 -10 -9 --------- Run | Yrd Mat Mat Distress Signals 1 | . 1 . Communications Jammed . | . . . Distress Signals . | . . . Times Spotted 14 | . 5 9 Peak Tracking Total 6 | . 3 6 Tactical Retreats . | . . . Traps | -11 -10 -9 ------- Run | Yrd Mat Mat Traps Triggered 5 | . 5 . Indirectly . | . . . Trap Hack Attempts . | . . . Triggered . | . . . Disarmed . | . . . Reprogrammed . | . . . Reused . | . . . Traps Extracted . | . . . Installed . | . . . Triggered . | . . . Machines | -11 -10 -9 ---------- Run | Yrd Mat Mat Machines Disabled . | . . . Max in Single Turn . | . . . Machines Repaired . | . . . Machines Dismantled . | . . . Machines Sabotaged . | . . . Overloaded Fab Kills . | . . . Hacking | -11 -10 -9 --------- Run | Yrd Mat Mat Machines Accessed 8 | . 7 1 Terminals 6 | . 5 1 Fabricators . | . . . Repair Stations . | . . . Recycling Units 2 | . 2 . Scanalyzers . | . . . Garrison Access . | . . . Total Hacks 18 | . 15 3 Successful 12 | . 10 2 Failed 6 | . 5 1 Catastrophic 1 | . 1 . Database Lockouts . | . . . Manual 13 | . 10 3 Terminals 14 | . 11 3 Fabricators . | . . . Repair Stations . | . . . Recycling Units 4 | . 4 . Scanalyzers . | . . . Garrison Access . | . . . Terminal Hacks 3 | . 3 . Robot Analysis 1 | . 1 . Prototype ID Bank 1 | . 1 . Hauler Manifests 1 | . 1 . Fabricator Hacks . | . . . Repair Station Hacks . | . . . Recycling Unit Hacks 2 | . 2 . Report Inventory 2 | . 2 . Scanalyzer . | . . . Garrison Access Hacks . | . . . Unauthorized Hacks 7 | . 5 2 Terminals 5 | . 3 2 Track 1 | . 1 . Botnet 3 | . 2 1 Disrupt 1 | . . 1 Fabricators . | . . . Repair Stations . | . . . Recycling Units 2 | . 2 . Reject 1 | . 1 . Recyclers 1 | . 1 . Scanalyzers . | . . . Garrison Access . | . . . Data Cores Recovered . | . . . Used . | . . . Hacking Detections 6 | . 5 1 Full Trace Events 1 | . 1 . Feedback Events . | . . . Feedback Blocked . | . . . Robot Schematics Acquired . | . . . Robots Built . | . . . Authchips . | . . . Time . | . . . Total Robot Build Rating . | . . . Part Schematics Acquired . | . . . Parts Built . | . . . Authchips . | . . . Time . | . . . Total Part Build Rating . | . . . Parts Repaired . | . . . Time . | . . . Parts Recycled . | . . . Recycled Matter . | . . . Retrieved Matter . | . . . Retrieved Components . | . . . Parts Scanalyzed . | . . . Part Schematics Acquired . | . . . Parts Damaged . | . . . Bothacking | -11 -10 -9 ------------ Run | Yrd Mat Mat Used RIF Installer . | . . . Robots Hacked . | . . . Non-combat . | . . . Combat . | . . . Robot Hacks Applied . | . . . Relay Couplers Released . | . . . Fabnet Peak Effective % . | . . . Robots Rewired . | . . . Allies Hacked . | . . . Hacks Repelled . | . . . Allies | -11 -10 -9 -------- Run | Yrd Mat Mat Total Allies . | . . . Largest Group . | . . . Highest-Rated Group . | . . . Highest-Rated Ally . | . . . Total Orders . | . . . Ally Attacks . | . . . Total Damage . | . . . Kills . | . . . Allies Corrupted . | . . . Allies Melted . | . . . Intel | -11 -10 -9 ------- Run | Yrd Mat Mat Robot Analysis Total 1 | . 1 . Derelict Logs Recovered . | . . . Drone Launches . | . . . Drone Recoveries . | . . . Exploration | -11 -10 -9 ------------- Run | Yrd Mat Mat Turns Passed 908 | 94 728 86 Spaces Moved 486 | 44 410 32 Core 5 | 4 1 . Treads 481 | 40 409 32 Legs . | . . . Wheels . | . . . Hover . | . . . Flight . | . . . Fastest Speed 50 | 50 160 160 Average Speed 159 | 150 160 160 Slowest Speed 250 | 160 250 160 Overloaded Moves . | . . . Propulsion Burnouts . | . . . Robots Hopped . | . . . Cave-ins Triggered . | . . . Exploration Rate (%) 23 | 4 57 9 Regions Visited 2 Branch Regions . Pre-discovered Areas . | . . . Known Exits Taken . | . . . Unknown Exits Taken 2 | 1 1 . Scrap Searched . | . . . Spaces Dug 6 | . 6 . Terrain Destroyed 11 | . 6 5 Melee . | . . . Projectile 6 | . 6 . AOE 5 | . . 5 Terrain Rammed . | . . . Walls Destroyed . | . . . Machines Disabled . | . . . Actions | -11 -10 -9 --------- Run | Yrd Mat Mat Total 554 | 65 441 48 Wait 2 | . . 2 Move 484 | 43 409 32 Hop . | . . . Pick Up 12 | 9 3 . Fast Attach 14 | 5 8 1 Attach 3 | 3 . . Detach 1 | 1 . . Swap 4 | . 2 2 Drop 2 | 1 1 . Fire 30 | 3 16 11 Melee . | . . . Ram . | . . . Kick . | . . . Crush 2 | . 2 . Escape Stasis . | . . . Rewire . | . . . Trap . | . . . Miscellaneous . | . . . Route ------- -11/Scrapyard -10/Materials (discovered 2 exits: *Mat / [*Min]) -9/Materials History --------- Turn | Location | Event 34 | -11/Scrapyard | Discovered new exit (range 15) 95 | -11/Scrapyard | Entered Materials 333 | -10/Materials | Build established: Mutant 417 | -10/Materials | Discovered new exit (range 7) 577 | -10/Materials | Discovered new exit (range 5) 823 | -10/Materials | Entered another Materials area 823 | -9/Materials | Evolved 2 slots: Utility x2 909 | -9/Materials | Self-destructed Last Messages --------------- Testing... Disruption routine running. 00884_ O-16 Technician: "IFF HANDSHAKE FAILED. SECURING TERMINAL." 00887_ O-16 Technician destroyed. 00888_ C-30 ARC bursts open, deploying its payload. 00888_ S-10 Pest unfolds itself. 00900_ Chain reaction triggered in Imp. Ion Engine. 00900_ S-10 Pest destroyed. 00901_ U-05 Engineer lays Concrete. 00906_ R-06 Scavenger collects Flight Unit. 00906_ Heat Sink fried. 00906_ Y-45 Defender destroyed. 00906_ U-05 Engineer lays Concrete. 00908_ Acquired 60 matter. 00908_ K-01 Serf collects debris. 00908_ Lgt. Nuclear Core destroyed. 00909_ U-05 Engineer builds a Wall. Map ----- +----------------------------------------------------+ | ???????????????????? ???????????????????? | | ???????????????????? #??????????????????? | | ???????????????? ???" #??????????????????? | | ??????????????? T" #??????????????????? | | ???????????????? """ #??????????????????? | | ????????????????? ##?????????????????? | | ?????????????????? #?????????????????? | | ??????????????????? #?????????????????? | | ???????????????????? #?????????????????? | | ????????????????????# +??????#####??????? | | ????????????????????# #??????# #??????? | | ????????????????????# #??????# #??????? | | ?????????#########?## ##?????# #??????? | | ?????????# # ####### #??????? | | ?????????# # #??????? | | ?????????? """ +" #??????? | | ?????????? """"" #%" #??????? | | ????????????""""" #" ###########??????? | | ?????????????"""" ?##= ##????????????????? | | ?????????????""" ??#%= #?????????????????? | | ????????????? ???#[ #?????????????????? | | ????????????##+##???# #?????#???????????? | | ????????????????????#*= #??## ###?????????? | | ????????????????????#$= ### #?????????? | | ???????????????????##%/ #[; #?????????? | | ???????????### ##### ru@ #?????????? | | ??????? u ;; #?????????? | | ??????? T ## +?????? | | ??????? #?# #?????? | | ????????###### ### #?? #?????? | | ?????????????# ??###g###??? k #?????? | | ?????????????# ????? ?????? +?????? | | ?????????????# ????? ??????? #?????? | | ????????????? ?????[ ????????# #?????? | | ????????????#?????? ????????? #?????? | | ?????????????????? ?????????? #?????? | | ?????????????????# ??????????? #?????? | | ?????????????????# ??????????????????? | | ?????????????????# ? ??????????????????? | | ?????????????????# ??????????????????????? | | ??????????????????????????????????????????? | | ??????????????????????????????????????????? | | ??????????????????????????????????????????? | | ??????????????????????????????????????????? | | ??????????????????????????????????????????? | | ??????????????????????????????????????????? | | ??????????????????????????????????????????? | | ??????????????????????????????????????????? | | ??????????????????????????????????????????? | | ??????????????????????????????????????????? | +----------------------------------------------------+ Best States ------------- Heat Dissipation 28 Energy Generation 14 Energy Capacity 160 Matter Stores 174 Matter Capacity 300 Sight Range 16 Terrain Scan Density 10 Armor Coverage 225 Resistance: KI 20 Resistance: TH 20 Resistance: EX 20 Resistance: EM 20 Resistance: I 20 Resistance: S 20 Resistance: P 20 Evasion (%) 40 Recoil Reduction 2 Offensive Hacking 10 Item Schematics ----------------- None Robot Schematics ------------------ None Fabricated ------------ Nothing Alien Tech Used ----------------- None Achievements -------------- None Challenges ------------ None Game ------ Seed HoverHellfirePerforator Manual? 0 Play Time 00:15:32 Cumulative 240.5 hours Start 2024.05.02 @ 14:19:38 End 2024.05.02 @ 14:34:29 Sessions 1 Manual Loads 0 Difficulty Adventurer Special Mode None Game No. 87 Rogue 10 Adventurer 77 Explorer 0 Win Type - Total 5 Types 4/0/0/0/0/0/0/1/0 Lore% 51 Gallery% 47 Achievement% 47 Wizard Run 0 Options --------- Layout 1 ASCII 0 Keyboard 0 Movement Arrows Keybinds 0 Fullscreen 1 Font 24/Smallcaps Map View 50x35 Zoom Use 0% Tactical HUD 1 Map Filters NONE Filters NONE Steam 1 RUN: 9817365c-758a-44f4-a814-39a0668c1214